[Event "Live Chess"]
[Site "Chess.com"]
[Date "2024.06.01"]
[Round "-"]
[White "willc-h99"]
[Black "FlyingChessKestrel13"]
[Result "1-0"]
[WhiteElo "2632"]
[BlackElo "2095"]
[TimeControl "300"]
[EndTime "11:14:26 PDT"]
[Termination "willc-h99 won by resignation"]

1. d4 {[%clk 0:04:58.7]} 1... d5 {[%clk 0:04:59.1]} 2. Bg5 {[%clk 0:04:57.2]}
2... Nf6 {[%clk 0:04:57.7]} 3. Bxf6 {[%clk 0:04:55.7]} 3... exf6 {[%clk
0:04:56.9]} 4. e3 {[%clk 0:04:54.8]} 4... c6 {[%clk 0:04:56.4]} 5. Ne2 {[%clk
0:04:49.2]} 5... Bd6 {[%clk 0:04:55.3]} 6. g3 {[%clk 0:04:48.1]} 6... O-O {[%clk
0:04:53]} 7. Bg2 {[%clk 0:04:47.4]} 7... Re8 {[%clk 0:04:52.4]} 8. O-O {[%clk
0:04:46.4]} 8... Bg4 {[%clk 0:04:51.1]} 9. h3 {[%clk 0:04:30.8]} 9... Bh5 {[%clk
0:04:49.9]} 10. Qd2 {[%clk 0:04:25.1]} 10... Bg6 {[%clk 0:04:48.4]} 11. Nf4
{[%clk 0:04:19.3]} 11... Be4 {[%clk 0:04:31.7]} 12. f3 {[%clk 0:04:16.5]} 12...
Bg6 {[%clk 0:04:26.4]} 13. Nc3 {[%clk 0:04:06.9]} 13... Bxf4 {[%clk 0:04:22.6]}
14. exf4 {[%clk 0:04:02.3]} 14... f5 {[%clk 0:04:19]} 15. Rae1 {[%clk
0:03:58.7]} 15... Rxe1 {[%clk 0:04:15.6]} 16. Rxe1 {[%clk 0:03:57.5]} 16... Nd7
{[%clk 0:04:14.9]} 17. h4 {[%clk 0:03:55.9]} 17... f6 {[%clk 0:04:10.4]} 18. Bh3
{[%clk 0:03:51.9]} 18... Nf8 {[%clk 0:04:08.5]} 19. Qe3 {[%clk 0:03:44.6]} 19...
Qd7 {[%clk 0:04:06.5]} 20. Qe7 {[%clk 0:03:37.5]} 20... Re8 {[%clk 0:04:00.7]}
21. Qxd7 {[%clk 0:03:36.8]} 21... Rxe1+ {[%clk 0:03:59.6]} 22. Kf2 {[%clk
0:03:36.4]} 22... Nxd7 {[%clk 0:03:55.2]} 23. Kxe1 {[%clk 0:03:35.4]} 23... Kf7
{[%clk 0:03:51]} 24. Nd1 {[%clk 0:03:34.9]} 24... Ke6 {[%clk 0:03:47.4]} 25. Ne3
{[%clk 0:03:34]} 25... Nb6 {[%clk 0:03:39.6]} 26. b3 {[%clk 0:03:28.5]} 26...
Nc8 {[%clk 0:03:37.3]} 27. h5 {[%clk 0:03:27.7]} 27... Nd6 {[%clk 0:03:22.8]}
28. hxg6 {[%clk 0:03:25.6]} 28... hxg6 {[%clk 0:03:22.7]} 29. Kd2 {[%clk
0:03:23.3]} 29... g5 {[%clk 0:03:20.9]} 30. c4 {[%clk 0:03:20]} 30... gxf4
{[%clk 0:03:15.5]} 31. gxf4 {[%clk 0:03:18.7]} 31... dxc4 {[%clk 0:03:13.8]} 32.
bxc4 {[%clk 0:03:16.9]} 32... g6 {[%clk 0:03:13.4]} 33. Kc3 {[%clk 0:03:15.7]}
33... b6 {[%clk 0:03:11.6]} 34. Bf1 {[%clk 0:03:07.7]} 34... g5 {[%clk
0:03:09.8]} 35. Bd3 {[%clk 0:03:01.8]} 35... gxf4 {[%clk 0:03:08.2]} 36. Ng2
{[%clk 0:03:00.9]} 36... c5 {[%clk 0:03:02.6]} 37. Nxf4+ {[%clk 0:02:59.6]}
37... Kf7 {[%clk 0:03:01.4]} 38. Bc2 {[%clk 0:02:45.8]} 38... cxd4+ {[%clk
0:02:51.7]} 39. Kxd4 {[%clk 0:02:44.7]} 39... Nb7 {[%clk 0:02:50.8]} 40. Bxf5
{[%clk 0:02:41.5]} 40... Nc5 {[%clk 0:02:49.9]} 41. Nd3 {[%clk 0:02:37.3]} 41...
a6 {[%clk 0:02:43.5]} 1-0

[Event "Live Chess"]
[Site "Chess.com"]
[Date "2024.06.01"]
[Round "-"]
[White "Colm_Buckley"]
[Black "Rusty_Bridges"]
[Result "1-0"]
[WhiteElo "1812"]
[BlackElo "1477"]
[TimeControl "300"]
[EndTime "11:14:44 PDT"]
[Termination "Colm_Buckley won by resignation"]

1. d4 {[%clk 0:04:57.6]} 1... d5 {[%clk 0:04:57.2]} 2. c4 {[%clk 0:04:56.6]}
2... e6 {[%clk 0:04:56.4]} 3. Nc3 {[%clk 0:04:55.3]} 3... Be7 {[%clk 0:04:55.5]}
4. Nf3 {[%clk 0:04:54.3]} 4... Nf6 {[%clk 0:04:54.5]} 5. Bf4 {[%clk 0:04:53.2]}
5... c6 {[%clk 0:04:51.2]} 6. e3 {[%clk 0:04:52.3]} 6... Nbd7 {[%clk 0:04:50.5]}
7. h3 {[%clk 0:04:50.6]} 7... O-O {[%clk 0:04:49.4]} 8. Rc1 {[%clk 0:04:48.5]}
8... Ne8 {[%clk 0:04:48.4]} 9. Bd3 {[%clk 0:04:41.5]} 9... f5 {[%clk 0:04:46.6]}
10. O-O {[%clk 0:04:39.1]} 10... Nef6 {[%clk 0:04:40.5]} 11. Ne5 {[%clk
0:04:35.1]} 11... Nxe5 {[%clk 0:04:38.5]} 12. Bxe5 {[%clk 0:04:33.5]} 12... Bd6
{[%clk 0:04:34.3]} 13. Bxd6 {[%clk 0:04:27.1]} 13... Qxd6 {[%clk 0:04:33.2]} 14.
cxd5 {[%clk 0:04:26.4]} 14... cxd5 {[%clk 0:04:30]} 15. f3 {[%clk 0:04:23.7]}
15... a6 {[%clk 0:04:12.3]} 16. Na4 {[%clk 0:04:14.4]} 16... b6 {[%clk
0:03:39.4]} 17. Qb3 {[%clk 0:04:04]} 17... Rb8 {[%clk 0:03:35.4]} 18. Rc2 {[%clk
0:03:52.2]} 18... Nd7 {[%clk 0:03:30.9]} 19. Rfc1 {[%clk 0:03:46.9]} 19... b5
{[%clk 0:03:28]} 20. Nc5 {[%clk 0:03:36]} 20... Nxc5 {[%clk 0:03:26.1]} 21. Rxc5
{[%clk 0:03:29.8]} 21... Bd7 {[%clk 0:03:22.3]} 22. R1c3 {[%clk 0:03:19.4]}
22... Rfc8 {[%clk 0:03:14.3]} 23. Qc2 {[%clk 0:03:15.8]} 23... Rxc5 {[%clk
0:03:12.4]} 24. Rxc5 {[%clk 0:03:04.2]} 24... h6 {[%clk 0:03:06.7]} 25. a3
{[%clk 0:02:55.3]} 25... Kh7 {[%clk 0:03:05.2]} 26. Kf2 {[%clk 0:02:52.1]} 26...
g5 {[%clk 0:02:52.2]} 27. Rc7 {[%clk 0:02:44.9]} 27... Kg6 {[%clk 0:02:45.7]}
28. Qc5 {[%clk 0:02:41.2]} 28... Qxc5 {[%clk 0:02:36.8]} 29. dxc5 {[%clk
0:02:39]} 29... Be8 {[%clk 0:02:27.9]} 30. b4 {[%clk 0:02:34.1]} 30... Ra8
{[%clk 0:02:16.8]} 31. Rb7 {[%clk 0:02:23]} 31... a5 {[%clk 0:02:13.7]} 32. Bxb5
{[%clk 0:02:14.5]} 32... axb4 {[%clk 0:02:12]} 33. Bxe8+ {[%clk 0:02:12.1]}
33... Rxe8 {[%clk 0:02:08.5]} 34. axb4 {[%clk 0:02:09.2]} 1-0

[Event "Live Chess"]
[Site "Chess.com"]
[Date "2024.06.01"]
[Round "-"]
[White "McFim"]
[Black "JavaidMiah"]
[Result "1-0"]
[WhiteElo "1580"]
[BlackElo "1184"]
[TimeControl "300"]
[EndTime "11:14:48 PDT"]
[Termination "McFim won by resignation"]

1. e4 {[%clk 0:04:57.2]} 1... c5 {[%clk 0:04:58.1]} 2. Nf3 {[%clk 0:04:55.9]}
2... Nc6 {[%clk 0:04:56.9]} 3. Bb5 {[%clk 0:04:55.1]} 3... Nf6 {[%clk 0:04:54]}
4. d3 {[%clk 0:04:53.5]} 4... d6 {[%clk 0:04:51.1]} 5. O-O {[%clk 0:04:50.1]}
5... g6 {[%clk 0:04:49.6]} 6. Nc3 {[%clk 0:04:48.6]} 6... Bg7 {[%clk 0:04:48.8]}
7. h3 {[%clk 0:04:47.2]} 7... O-O {[%clk 0:04:47]} 8. Bf4 {[%clk 0:04:45.1]}
8... Nd4 {[%clk 0:04:41.1]} 9. Bc4 {[%clk 0:04:40.4]} 9... e6 {[%clk 0:04:13.8]}
10. Nxd4 {[%clk 0:04:37.6]} 10... cxd4 {[%clk 0:04:12.4]} 11. Ne2 {[%clk
0:04:35.7]} 11... e5 {[%clk 0:04:11.1]} 12. Bg5 {[%clk 0:04:33.2]} 12... Qb6
{[%clk 0:04:06.7]} 13. Qc1 {[%clk 0:04:27.8]} 13... a5 {[%clk 0:04:01.7]} 14. c3
{[%clk 0:04:16.3]} 14... dxc3 {[%clk 0:03:56.4]} 15. bxc3 {[%clk 0:04:14.4]}
15... Qc7 {[%clk 0:03:48.4]} 16. Rb1 {[%clk 0:03:58.9]} 16... Rd8 {[%clk
0:03:46.1]} 17. Bh6 {[%clk 0:03:56.2]} 17... Bd7 {[%clk 0:03:35.4]} 18. Bxg7
{[%clk 0:03:52]} 18... Kxg7 {[%clk 0:03:35.3]} 19. f4 {[%clk 0:03:46.6]} 19...
a4 {[%clk 0:03:18]} 20. Bd5 {[%clk 0:03:18.8]} 20... Nxd5 {[%clk 0:03:13.5]} 21.
exd5 {[%clk 0:03:17.5]} 21... Rac8 {[%clk 0:03:09.9]} 22. c4 {[%clk 0:03:14.9]}
22... Qc5+ {[%clk 0:02:59.4]} 23. Kh2 {[%clk 0:03:13.2]} 23... Rb8 {[%clk
0:02:53.3]} 24. Nc3 {[%clk 0:03:00.6]} 24... Qd4 {[%clk 0:02:39.7]} 25. Qc2
{[%clk 0:02:38.3]} 25... Qxf4+ {[%clk 0:02:36]} 26. Rxf4 {[%clk 0:02:35.1]} 1-0

[Event "Live Chess"]
[Site "Chess.com"]
[Date "2024.06.01"]
[Round "-"]
[White "Golden_Plans"]
[Black "chess5013"]
[Result "1-0"]
[WhiteElo "2253"]
[BlackElo "1250"]
[TimeControl "300"]
[EndTime "11:14:48 PDT"]
[Termination "Golden_Plans won by checkmate"]

1. e4 {[%clk 0:04:57.5]} 1... c6 {[%clk 0:04:58.6]} 2. d4 {[%clk 0:04:55]} 2...
d5 {[%clk 0:04:58.1]} 3. Nc3 {[%clk 0:04:54.9]} 3... dxe4 {[%clk 0:04:56.5]} 4.
Nxe4 {[%clk 0:04:54.8]} 4... Bf5 {[%clk 0:04:55.4]} 5. Ng5 {[%clk 0:04:52.9]}
5... h6 {[%clk 0:04:46.9]} 6. Nxf7 {[%clk 0:04:51.9]} 6... Kxf7 {[%clk
0:04:42.9]} 7. Nf3 {[%clk 0:04:51.8]} 7... Nf6 {[%clk 0:04:37.3]} 8. Ne5+ {[%clk
0:04:50.6]} 8... Ke8 {[%clk 0:04:31.1]} 9. Bc4 {[%clk 0:04:49.4]} 9... e6 {[%clk
0:04:21.5]} 10. g4 {[%clk 0:04:46.5]} 10... Qa5+ {[%clk 0:03:41.4]} 11. Bd2
{[%clk 0:04:38.9]} 11... Bxg4 {[%clk 0:03:31.1]} 12. f3 {[%clk 0:04:30.4]} 12...
Bxf3 {[%clk 0:03:14.7]} 13. Qxf3 {[%clk 0:04:25.9]} 13... Qc7 {[%clk 0:03:11.9]}
14. Qg3 {[%clk 0:04:24.6]} 14... Nbd7 {[%clk 0:03:06.6]} 15. Qg6+ {[%clk
0:04:21.1]} 15... Kd8 {[%clk 0:03:05.1]} 16. Nf7+ {[%clk 0:04:11.3]} 16... Kc8
{[%clk 0:03:01.9]} 17. Bxe6 {[%clk 0:04:08.1]} 17... Rg8 {[%clk 0:02:57.7]} 18.
O-O-O {[%clk 0:03:58.5]} 18... b6 {[%clk 0:02:53]} 19. Rhf1 {[%clk 0:03:55.1]}
19... Kb7 {[%clk 0:02:51]} 20. Bf4 {[%clk 0:03:49.7]} 20... Qc8 {[%clk
0:02:41.1]} 21. Bd6 {[%clk 0:03:45.6]} 21... Bxd6 {[%clk 0:02:39]} 22. Nxd6+
{[%clk 0:03:45.5]} 22... Kc7 {[%clk 0:02:37.1]} 23. Nxc8 {[%clk 0:03:45.4]}
23... Raxc8 {[%clk 0:02:36.2]} 24. Qf7 {[%clk 0:03:42.3]} 24... Rge8 {[%clk
0:02:35.5]} 25. Rxf6 {[%clk 0:03:40.1]} 25... gxf6 {[%clk 0:02:33.2]} 26. Qxd7+
{[%clk 0:03:40]} 26... Kb8 {[%clk 0:02:30.6]} 27. d5 {[%clk 0:03:39.3]} 27... c5
{[%clk 0:02:28.2]} 28. d6 {[%clk 0:03:36.2]} 28... Rg8 {[%clk 0:02:26.4]} 29.
Bd5 {[%clk 0:03:32.8]} 29... Rg2 {[%clk 0:02:20.7]} 30. Qb7# {[%clk 0:03:30.1]}
1-0

[Event "Live Chess"]
[Site "Chess.com"]
[Date "2024.06.01"]
[Round "-"]
[White "hapehansen"]
[Black "MagnersCarlsberg2870"]
[Result "1-0"]
[WhiteElo "2243"]
[BlackElo "1875"]
[TimeControl "300"]
[EndTime "11:14:48 PDT"]
[Termination "hapehansen won by resignation"]

1. Nf3 {[%clk 0:04:55.5]} 1... Nc6 {[%clk 0:04:56.2]} 2. e4 {[%clk 0:04:51.4]}
2... e5 {[%clk 0:04:54.4]} 3. Nc3 {[%clk 0:04:49.5]} 3... Bc5 {[%clk 0:04:50.8]}
4. Nxe5 {[%clk 0:04:46.8]} 4... Bxf2+ {[%clk 0:04:48.5]} 5. Kxf2 {[%clk
0:04:44.8]} 5... Nxe5 {[%clk 0:04:46.8]} 6. d4 {[%clk 0:04:43.7]} 6... Qf6+
{[%clk 0:04:44.4]} 7. Kg1 {[%clk 0:04:42.6]} 7... Nc6 {[%clk 0:04:40.1]} 8. Be3
{[%clk 0:04:33]} 8... d6 {[%clk 0:04:36.8]} 9. Qf3 {[%clk 0:04:17.1]} 9... Qxf3
{[%clk 0:04:34.9]} 10. gxf3 {[%clk 0:04:15.2]} 10... Nb4 {[%clk 0:04:33.9]} 11.
Rc1 {[%clk 0:04:09.7]} 11... Nf6 {[%clk 0:04:28.4]} 12. a3 {[%clk 0:04:06.4]}
12... Nc6 {[%clk 0:04:26.3]} 13. Nb5 {[%clk 0:04:00.6]} 13... Kd8 {[%clk
0:04:24.8]} 14. Kf2 {[%clk 0:03:56]} 14... a6 {[%clk 0:04:23.9]} 15. Nc3 {[%clk
0:03:53.9]} 15... h5 {[%clk 0:04:19.5]} 16. Rg1 {[%clk 0:03:51.6]} 16... g6
{[%clk 0:04:18.2]} 17. Bg5 {[%clk 0:03:48.9]} 17... Ke7 {[%clk 0:04:16.5]} 18.
Nd5+ {[%clk 0:03:47]} 18... Ke6 {[%clk 0:04:13.2]} 1-0

[Event "Live Chess"]
[Site "Chess.com"]
[Date "2024.06.01"]
[Round "-"]
[White "TigerTank70"]
[Black "LL220284LL"]
[Result "0-1"]
[WhiteElo "2200"]
[BlackElo "2569"]
[TimeControl "300"]
[EndTime "11:15:01 PDT"]
[Termination "LL220284LL won by resignation"]

1. e4 {[%clk 0:04:58.1]} 1... g6 {[%clk 0:04:58]} 2. d4 {[%clk 0:04:56.1]} 2...
h5 {[%clk 0:04:56.7]} 3. Nc3 {[%clk 0:04:55.3]} 3... Bg7 {[%clk 0:04:55.7]} 4.
Nf3 {[%clk 0:04:52.8]} 4... b6 {[%clk 0:04:55.3]} 5. Bc4 {[%clk 0:04:50.5]} 5...
e6 {[%clk 0:04:53.6]} 6. O-O {[%clk 0:04:45.5]} 6... Bb7 {[%clk 0:04:52.8]} 7.
Bg5 {[%clk 0:04:43.4]} 7... Bf6 {[%clk 0:04:50.2]} 8. Bxf6 {[%clk 0:04:34.2]}
8... Qxf6 {[%clk 0:04:50.1]} 9. d5 {[%clk 0:04:33.6]} 9... Nh6 {[%clk
0:04:44.7]} 10. Nb5 {[%clk 0:04:26.2]} 10... Na6 {[%clk 0:04:43]} 11. d6 {[%clk
0:04:16.7]} 11... c5 {[%clk 0:04:38.8]} 12. e5 {[%clk 0:03:55.5]} 12... Bxf3
{[%clk 0:04:28.9]} 13. Qxf3 {[%clk 0:03:55.4]} 13... Qxf3 {[%clk 0:04:26.9]} 14.
gxf3 {[%clk 0:03:54.4]} 14... f6 {[%clk 0:04:25.5]} 15. f4 {[%clk 0:03:46.3]}
15... Rf8 {[%clk 0:04:24]} 16. Bd3 {[%clk 0:03:40.6]} 16... Kf7 {[%clk
0:04:19.7]} 17. Be4 {[%clk 0:03:39.4]} 17... Rab8 {[%clk 0:04:13.8]} 18. c4
{[%clk 0:03:27]} 18... Kg7 {[%clk 0:04:07.9]} 19. Nxa7 {[%clk 0:03:24.2]} 19...
Nf7 {[%clk 0:04:06.4]} 20. exf6+ {[%clk 0:02:56.9]} 20... Kxf6 {[%clk
0:04:06.3]} 21. a4 {[%clk 0:02:54.6]} 21... Nxd6 {[%clk 0:04:04.2]} 22. Bd3
{[%clk 0:02:50.3]} 22... Nb4 {[%clk 0:04:02.8]} 23. Be2 {[%clk 0:02:41.5]} 23...
Ra8 {[%clk 0:03:57.9]} 24. Rfd1 {[%clk 0:02:26.6]} 24... Ke7 {[%clk 0:03:54.8]}
25. Nb5 {[%clk 0:02:14.5]} 25... Nxb5 {[%clk 0:03:53.7]} 26. axb5 {[%clk
0:02:12.3]} 26... Nc2 {[%clk 0:03:49.2]} 27. Rac1 {[%clk 0:02:01.8]} 27... Nd4
{[%clk 0:03:48]} 28. Bd3 {[%clk 0:01:59.9]} 28... Rxf4 {[%clk 0:03:46.3]} 29. h3
{[%clk 0:01:56.2]} 29... g5 {[%clk 0:03:41.3]} 30. Kg2 {[%clk 0:01:47.4]} 30...
Ra2 {[%clk 0:03:39.9]} 31. Rb1 {[%clk 0:01:46]} 31... Ra8 {[%clk 0:03:33.5]} 32.
Bg6 {[%clk 0:01:44.5]} 32... Raf8 {[%clk 0:03:28.6]} 33. Rf1 {[%clk 0:01:38.5]}
33... Rh4 {[%clk 0:03:21.5]} 34. b4 {[%clk 0:01:30.3]} 34... Ne2 {[%clk
0:03:18]} 35. f3 {[%clk 0:00:52]} 35... Nf4+ {[%clk 0:03:15.7]} 36. Kf2 {[%clk
0:00:48.7]} 36... Nxg6 {[%clk 0:03:14.3]} 37. bxc5 {[%clk 0:00:47.2]} 37... bxc5
{[%clk 0:03:13.8]} 38. b6 {[%clk 0:00:46.3]} 38... Rxc4 {[%clk 0:03:12.3]} 39.
b7 {[%clk 0:00:44.3]} 39... Rb8 {[%clk 0:03:11.3]} 40. Rb6 {[%clk 0:00:42.6]}
40... Rb4 {[%clk 0:03:09]} 41. Rb1 {[%clk 0:00:40.5]} 41... Rxb1 {[%clk
0:03:07.9]} 42. Rxb1 {[%clk 0:00:38.8]} 42... Ne5 {[%clk 0:03:07.4]} 0-1

[Event "Live Chess"]
[Site "Chess.com"]
[Date "2024.06.01"]
[Round "-"]
[White "nitrofish07"]
[Black "oscalik"]
[Result "1-0"]
[WhiteElo "2127"]
[BlackElo "2388"]
[TimeControl "300"]
[EndTime "11:15:23 PDT"]
[Termination "nitrofish07 won by checkmate"]

1. d4 {[%clk 0:04:57]} 1... Nf6 {[%clk 0:04:43.4]} 2. c4 {[%clk 0:04:56.9]} 2...
d6 {[%clk 0:04:24.6]} 3. Nc3 {[%clk 0:04:51.5]} 3... e5 {[%clk 0:04:23]} 4. dxe5
{[%clk 0:04:47.5]} 4... dxe5 {[%clk 0:04:22]} 5. Qxd8+ {[%clk 0:04:47.4]} 5...
Kxd8 {[%clk 0:04:21.7]} 6. Bg5 {[%clk 0:04:46.4]} 6... c6 {[%clk 0:04:18.1]} 7.
O-O-O+ {[%clk 0:04:46.3]} 7... Kc7 {[%clk 0:04:17.2]} 8. Nf3 {[%clk 0:04:45]}
8... Nbd7 {[%clk 0:04:15.1]} 9. Bxf6 {[%clk 0:04:41.1]} 9... gxf6 {[%clk
0:04:13.8]} 10. e4 {[%clk 0:04:39.5]} 10... a5 {[%clk 0:04:12.1]} 11. h3 {[%clk
0:04:37.5]} 11... b6 {[%clk 0:04:11]} 12. g4 {[%clk 0:04:35.7]} 12... a4 {[%clk
0:04:10.1]} 13. Nh4 {[%clk 0:04:33.4]} 13... Nc5 {[%clk 0:04:07.4]} 14. f3
{[%clk 0:04:30]} 14... Bh6+ {[%clk 0:04:06.2]} 15. Kb1 {[%clk 0:04:28.6]} 15...
Be6 {[%clk 0:04:00]} 16. Be2 {[%clk 0:04:26.8]} 16... Rhd8 {[%clk 0:03:55.9]}
17. Nf5 {[%clk 0:04:25.2]} 17... Bxf5 {[%clk 0:03:53.6]} 18. exf5 {[%clk
0:04:21.8]} 18... Be3 {[%clk 0:03:49.8]} 19. Ne4 {[%clk 0:04:18.7]} 19... Nxe4
{[%clk 0:03:42.9]} 20. fxe4 {[%clk 0:04:17]} 20... Rd3 {[%clk 0:03:40.2]} 21.
Rxd3 {[%clk 0:04:11.9]} 21... Bd4 {[%clk 0:03:38.9]} 22. Rhd1 {[%clk 0:04:08.7]}
22... c5 {[%clk 0:03:37.4]} 23. Kc2 {[%clk 0:04:03.9]} 23... a3 {[%clk
0:03:36.1]} 24. b3 {[%clk 0:04:02.3]} 24... h6 {[%clk 0:03:35.1]} 25. Rxd4
{[%clk 0:04:01.5]} 25... exd4 {[%clk 0:03:34]} 26. Kd3 {[%clk 0:04:01.1]} 26...
Kd6 {[%clk 0:03:33.2]} 27. Bf3 {[%clk 0:04:00.7]} 27... Ke5 {[%clk 0:03:32.7]}
28. Rh1 {[%clk 0:03:59.6]} 28... Rg8 {[%clk 0:03:31.5]} 29. h4 {[%clk
0:03:58.5]} 29... Rg7 {[%clk 0:03:31.1]} 30. Rg1 {[%clk 0:03:57.6]} 30... Rg8
{[%clk 0:03:30.1]} 31. Be2 {[%clk 0:03:44.1]} 31... Kf4 {[%clk 0:03:28.6]} 32.
Bd1 {[%clk 0:03:36.5]} 32... h5 {[%clk 0:03:26.8]} 33. g5 {[%clk 0:03:29.4]}
33... fxg5 {[%clk 0:03:25.8]} 34. Rxg5 {[%clk 0:03:28.2]} 34... Rxg5 {[%clk
0:03:20]} 35. hxg5 {[%clk 0:03:28.1]} 35... Kxg5 {[%clk 0:03:19.2]} 36. Ke2
{[%clk 0:03:26.3]} 36... Kf4 {[%clk 0:03:17.4]} 37. Bc2 {[%clk 0:03:23.5]} 37...
h4 {[%clk 0:03:16.5]} 38. Kf2 {[%clk 0:03:21.5]} 38... h3 {[%clk 0:03:14.7]} 39.
Bb1 {[%clk 0:03:17.7]} 39... f6 {[%clk 0:03:12.6]} 40. Kg1 {[%clk 0:03:15.3]}
40... Ke3 {[%clk 0:02:53.8]} 41. e5 {[%clk 0:03:12.8]} 41... fxe5 {[%clk
0:02:50.7]} 42. f6 {[%clk 0:03:12.2]} 42... d3 {[%clk 0:02:50.6]} 43. f7 {[%clk
0:03:09.1]} 43... d2 {[%clk 0:02:48.9]} 44. Bc2 {[%clk 0:03:08.8]} 44... e4
{[%clk 0:02:39.1]} 45. f8=Q {[%clk 0:03:08]} 45... Kd4 {[%clk 0:02:37]} 46. Qf4
{[%clk 0:03:04.9]} 46... Kc3 {[%clk 0:02:35.8]} 47. Qxe4 {[%clk 0:03:01.1]}
47... h2+ {[%clk 0:02:35.7]} 48. Kxh2 {[%clk 0:02:59.8]} 48... Kb2 {[%clk
0:02:35.6]} 49. Qd3 {[%clk 0:02:58.8]} 49... b5 {[%clk 0:02:34.4]} 50. Qxd2
{[%clk 0:02:57]} 50... b4 {[%clk 0:02:33.9]} 51. Be4+ {[%clk 0:02:53.2]} 51...
Ka1 {[%clk 0:02:32.7]} 52. Qc1+ {[%clk 0:02:49.4]} 52... Kxa2 {[%clk 0:02:31.8]}
53. Bb1+ {[%clk 0:02:48.8]} 53... Ka1 {[%clk 0:02:30.6]} 54. Qc2 {[%clk
0:02:48.7]} 54... a2 {[%clk 0:02:29.4]} 55. Qxa2# {[%clk 0:02:47.8]} 1-0

[Event "Live Chess"]
[Site "Chess.com"]
[Date "2024.06.01"]
[Round "-"]
[White "yarek"]
[Black "EgbertIII"]
[Result "1-0"]
[WhiteElo "1721"]
[BlackElo "1445"]
[TimeControl "300"]
[EndTime "11:15:25 PDT"]
[Termination "yarek won by resignation"]

1. e4 {[%clk 0:04:53.9]} 1... c6 {[%clk 0:04:57.6]} 2. Nf3 {[%clk 0:04:49]} 2...
d5 {[%clk 0:04:56.2]} 3. d3 {[%clk 0:04:48.5]} 3... dxe4 {[%clk 0:04:54.4]} 4.
Ng5 {[%clk 0:04:47.6]} 4... exd3 {[%clk 0:04:49.2]} 5. Bxd3 {[%clk 0:04:47.5]}
5... Nf6 {[%clk 0:04:40.3]} 6. Nxf7 {[%clk 0:04:44.9]} 6... Kxf7 {[%clk
0:04:38.7]} 7. Bg6+ {[%clk 0:04:44]} 7... hxg6 {[%clk 0:04:30.1]} 8. Qxd8 {[%clk
0:04:43.9]} 8... Be6 {[%clk 0:04:25.4]} 9. Nc3 {[%clk 0:04:34.7]} 9... b6 {[%clk
0:04:22.1]} 10. Qd4 {[%clk 0:04:20.7]} 10... c5 {[%clk 0:04:15.1]} 11. Qe3
{[%clk 0:04:08.1]} 1-0

[Event "Live Chess"]
[Site "Chess.com"]
[Date "2024.06.01"]
[Round "-"]
[White "PureDashingOctopus"]
[Black "CliveFrostick"]
[Result "1/2-1/2"]
[WhiteElo "2245"]
[BlackElo "1861"]
[TimeControl "300"]
[EndTime "11:15:27 PDT"]
[Termination "Game drawn by agreement"]

1. e4 {[%clk 0:04:58.6]} 1... c5 {[%clk 0:04:58.4]} 2. Nc3 {[%clk 0:04:57.5]}
2... e6 {[%clk 0:04:55.6]} 3. Nge2 {[%clk 0:04:55.7]} 3... Nc6 {[%clk
0:04:52.7]} 4. d4 {[%clk 0:04:54.5]} 4... cxd4 {[%clk 0:04:51.2]} 5. Nxd4 {[%clk
0:04:54.3]} 5... Nf6 {[%clk 0:04:49.6]} 6. Nxc6 {[%clk 0:04:53.2]} 6... bxc6
{[%clk 0:04:47.9]} 7. e5 {[%clk 0:04:52.9]} 7... Nd5 {[%clk 0:04:46.4]} 8. Ne4
{[%clk 0:04:52.5]} 8... Qc7 {[%clk 0:04:44.4]} 9. f4 {[%clk 0:04:51.4]} 9... Qb6
{[%clk 0:04:43.4]} 10. c4 {[%clk 0:04:50]} 10... Bb4+ {[%clk 0:04:41.2]} 11. Ke2
{[%clk 0:04:49]} 11... f5 {[%clk 0:04:33.5]} 12. exf6 {[%clk 0:04:47.6]} 12...
Nxf6 {[%clk 0:04:29.9]} 13. Be3 {[%clk 0:04:46.5]} 13... Qd8 {[%clk 0:04:26.8]}
14. Nd6+ {[%clk 0:04:45.2]} 14... Bxd6 {[%clk 0:04:22.7]} 15. Qxd6 {[%clk
0:04:45.1]} 15... Bb7 {[%clk 0:04:12.8]} 16. Kd1 {[%clk 0:04:37.6]} 16... c5
{[%clk 0:03:51]} 17. Qxc5 {[%clk 0:04:32.5]} 17... Ne4 {[%clk 0:03:29.4]} 18.
Qd4 {[%clk 0:04:29.4]} 18... O-O {[%clk 0:02:42.7]} 19. Bd3 {[%clk 0:04:19.5]}
19... d5 {[%clk 0:02:36]} 20. cxd5 {[%clk 0:04:16.8]} 20... exd5 {[%clk
0:02:32.4]} 21. Bxe4 {[%clk 0:04:15.7]} 21... dxe4 {[%clk 0:02:30.5]} 22. Qxd8
{[%clk 0:04:15.2]} 22... Rfxd8+ {[%clk 0:02:26]} 23. Ke2 {[%clk 0:04:14.6]}
23... Rac8 {[%clk 0:02:13.6]} 24. Rac1 {[%clk 0:04:12.1]} 24... Ba6+ {[%clk
0:02:10]} 25. Kf2 {[%clk 0:04:10.1]} 25... Bd3 {[%clk 0:02:07.9]} 26. Rxc8
{[%clk 0:03:49.7]} 26... Rxc8 {[%clk 0:02:05.8]} 27. Rc1 {[%clk 0:03:48.5]}
27... Rxc1 {[%clk 0:01:56.7]} 28. Bxc1 {[%clk 0:03:48.4]} 28... Kf7 {[%clk
0:01:54.7]} 29. Ke3 {[%clk 0:03:47.5]} 29... Ke6 {[%clk 0:01:53.5]} 30. Kd4
{[%clk 0:03:47]} 30... Bb1 {[%clk 0:01:50.9]} 31. a3 {[%clk 0:03:45.3]} 31... h5
{[%clk 0:01:48.9]} 32. Be3 {[%clk 0:03:40.5]} 32... Kf5 {[%clk 0:01:45.5]} 33.
h3 {[%clk 0:03:34.3]} 33... Bd3 {[%clk 0:01:35.3]} 34. g3 {[%clk 0:03:22.9]}
34... a6 {[%clk 0:01:30.2]} 35. b4 {[%clk 0:03:16.9]} 35... Bf1 {[%clk
0:01:24.8]} 36. g4+ {[%clk 0:03:12.7]} 36... hxg4 {[%clk 0:01:23]} 37. hxg4+
{[%clk 0:03:12.6]} 37... Kxg4 {[%clk 0:01:21.9]} 38. Kxe4 {[%clk 0:03:11.9]}
38... Bg2+ {[%clk 0:01:20.3]} 39. Ke5 {[%clk 0:03:08.9]} 39... Kf3 {[%clk
0:01:16.7]} 40. Bc5 {[%clk 0:03:06.9]} 40... Bh3 {[%clk 0:01:11.8]} 41. Bd6
{[%clk 0:02:56.1]} 41... g6 {[%clk 0:01:07.2]} 42. Kd4 {[%clk 0:02:54.5]} 42...
Bf1 {[%clk 0:01:03.5]} 43. Kc5 {[%clk 0:02:52.1]} 43... Bb5 {[%clk 0:01:00.4]}
44. Kb6 {[%clk 0:02:50.9]} 44... Bf1 {[%clk 0:00:57.9]} 45. a4 {[%clk
0:02:47.8]} 45... Kg4 {[%clk 0:00:56.8]} 46. b5 {[%clk 0:02:42.4]} 46... axb5
{[%clk 0:00:55]} 47. axb5 {[%clk 0:02:42]} 47... Bxb5 {[%clk 0:00:51.5]} 48.
Kxb5 {[%clk 0:02:40.7]} 48... g5 {[%clk 0:00:50.4]} 1/2-1/2